fUST/lending_fUST_20240918
["ID","MTS","AMOUNT","RATE_DAILY","PERIOD"]
[338408064,1726600247379,-250.0,0.00023521,2]
[338408066,1726600247389,-177220.61751466,0.000236,14]
[338408108,1726600247822,-17919.7586819,0.000236,14]
[338408262,1726600249459,-6073.64693811,0.00020483,2]
[338408264,1726600249470,-166.666666,0.00021918,2]
[338408266,1726600249480,-500.0,0.00021918,2]
[338408268,1726600249490,-500.0,0.00021918,2]
[338408270,1726600249503,-500.0,0.00021918,2]
[338408272,1726600249512,-500.0,0.00021918,2]
[338408274,1726600249521,-500.0,0.00021918,2]
[338408276,1726600249531,-500.0,0.00021918,2]
[338408278,1726600249541,-350.0,0.00021918,2]
[338408280,1726600249550,-500.0,0.00021918,2]
[338408282,1726600249560,-500.0,0.00021918,2]
[338408284,1726600249569,-500.0,0.00021918,2]
[338408286,1726600249581,-500.0,0.00021918,2]
[338408287,1726600249591,-500.0,0.00021973,2]
[338408288,1726600249601,-208.6901718,0.00022,2]
[338408289,1726600249611,-166.666666,0.00022431,2]
[338408290,1726600249620,-166.666666,0.00022944,2]
[338408291,1726600249630,-500.0,0.00023273,2]
[338408292,1726600249640,-1000.0,0.00023342,2]
[338408293,1726600249649,-166.666666,0.00023456,2]
[338408294,1726600249658,-22619.99176809,0.000236,14]
[338408295,1726600249733,-2053.821083,0.000236,14]
[338408334,1726601137168,-9274.6789377,0.00019773,2]
[338408335,1726601137190,-300.0,0.00019777,2]
[338408336,1726601137214,-300.0,0.00019777,2]
[338408337,1726601137235,-750.653581,0.00019778,2]
[338408338,1726601137256,-1000.0,0.0001998,2]
[338408339,1726601137281,-343.75,0.0002,2]
[338408340,1726601137303,-154.11553568,0.00020104,2]
[338408341,1726601137324,-6073.64693811,0.00020483,2]
[338408342,1726601137346,-500.0,0.0002051,30]
[338408343,1726601137368,-627.75533547,0.0002051,30]
[338408344,1726601137388,-150.0,0.00020732,2]
[338408345,1726601137408,-524.0,0.00020732,2]
[338408346,1726601137430,-1076.0,0.00020732,2]
[338408347,1726601137453,-2093.429858,0.00020811,2]
[338408348,1726601137474,-221.712849,0.00020911,2]
[338408349,1726601137496,-221.712849,0.00020968,2]
[338408350,1726601137518,-3000.0,0.00021,2]
[338408351,1726601137540,-221.712849,0.00021025,2]
[338408352,1726601137563,-221.712849,0.00021083,2]
[338408353,1726601137584,-179.03,0.00021098,2]
[338408354,1726601137607,-221.712849,0.0002114,2]
[338408355,1726601137630,-221.712849,0.00021197,2]
[338408356,1726601137652,-221.712849,0.00021255,2]
[338408357,1726601137675,-221.712849,0.00021312,2]
[338408358,1726601137696,-1000.0,0.00021349,2]
[338408359,1726601137720,-221.712849,0.00021369,2]
[338408360,1726601137743,-221.712849,0.00021427,2]
[338408361,1726601137766,-221.712849,0.00021484,2]
[338408362,1726601137787,-420.0,0.0002154,2]
[338408363,1726601137812,-221.712849,0.00021541,2]
[338408364,1726601137833,-172.0521541,0.0002158,2]
[338408365,1726601137857,-221.712849,0.00021599,2]
[338408366,1726601137879,-221.712849,0.00021656,2]
[338408367,1726601137901,-221.712849,0.00021713,2]
[338408368,1726601137921,-420.0,0.00021755,2]
[338408369,1726601137942,-221.712849,0.00021771,2]
[338408370,1726601137964,-221.712849,0.00021828,2]
[338408371,1726601137987,-221.712849,0.00021885,2]
[338408372,1726601138008,-166.666666,0.00021918,2]
[338408373,1726601138030,-221.712849,0.00021943,2]
[338408374,1726601138052,-221.712849,0.00022,2]
[338408375,1726601138091,-500.0,0.00022318,2]
[338408376,1726601138115,-500.0,0.00022318,2]
[338408377,1726601138140,-500.0,0.00022318,2]
[338408378,1726601138164,-500.0,0.00022318,2]
[338408379,1726601138189,-164.30247493,0.00022318,2]
[338408380,1726601138213,-500.0,0.00022318,2]
[338408381,1726601138236,-500.0,0.00022318,2]
[338408382,1726601138259,-500.0,0.00022318,2]
[338408383,1726601138286,-500.0,0.00022318,2]
[338408384,1726601138307,-357.86683671,0.00022318,2]
[338408385,1726601138328,-166.666666,0.00022431,2]
[338408386,1726601138350,-1000.0,0.00022719,2]
[338408387,1726601138372,-200.48007416,0.00022904,8]
[338408388,1726601138393,-166.666666,0.00022944,2]
[338408389,1726601138414,-200.0,0.00023,2]
[338408390,1726601138436,-306.92601894,0.00023,2]
[338408391,1726601138462,-752.19,0.000233,31]
[338408392,1726601138486,-752.19,0.000233,31]
[338408393,1726601138510,-752.19,0.000233,31]
[338408394,1726601138534,-752.19,0.000233,31]
[338408395,1726601138557,-752.19,0.000233,31]
[338408396,1726601138581,-752.19,0.000233,31]
[338408397,1726601138605,-752.19,0.000233,31]
[338408398,1726601138629,-752.19,0.000233,31]
[338408399,1726601138652,-752.19,0.000233,31]
[338408400,1726601138676,-752.19,0.000233,31]
[338408401,1726601138699,-752.19,0.000233,31]
[338408402,1726601138723,-752.19,0.000233,31]
[338408403,1726601138748,-752.19,0.000233,31]
[338408404,1726601138772,-752.19,0.000233,31]
[338408405,1726601138804,-752.19,0.000233,31]
[338408406,1726601138829,-752.19,0.000233,31]
[338408407,1726601138852,-166.666666,0.00023456,2]
[338408408,1726601138876,-587.0,0.0002346,2]
[338408409,1726601138901,-451.22775616,0.0002352,2]
[338408410,1726601138925,-8492.0,0.000236,22]
[338408411,1726601138950,-500.0,0.00023669,2]
[338408412,1726601138973,-500.0,0.00023675,2]
[338408413,1726601138994,-150.0,0.00023732,2]
[338408414,1726601139016,-524.0,0.00023732,2]
[338408415,1726601139039,-1076.0,0.00023732,2]
[338408416,1726601139062,-200.0,0.00023773,120]
[338408417,1726601139085,-587.0,0.0002393,2]
[338408418,1726601139111,-414.5768081,0.00023945,2]
[338408419,1726601139136,-166.666666,0.00023969,2]
[338408420,1726601139160,-200.0,0.00024,2]
[338408421,1726601139184,-284.21898871,0.00024,30]
[338408422,1726601139207,-500.0,0.00024,2]
[338408423,1726601139231,-500.0,0.00024,60]
[338408424,1726601139255,-1188.84044932,0.00024,2]
[338408425,1726601139282,-1188.84044932,0.00024,120]
[338408426,1726601139304,-1188.84044932,0.00024,30]
[338408427,1726601139326,-150.0,0.00024,2]
[338408428,1726601139349,-302.24446742,0.00024,2]
[338408429,1726601139371,-302.21432435,0.00024,2]
[338408430,1726601139394,-500.0,0.00024022,2]
[338408431,1726601139416,-151.0,0.00024083,2]
[338408432,1726601139438,-1000.0,0.00024089,2]
[338408433,1726601139472,-27059.0783438,0.0002409,3]
[338408434,1726601139502,-32627.7658417,0.0002409,3]
[338408436,1726601203102,-240.94342602,0.00024,2]
[338408438,1726601229172,-3945.91628999,0.00024,2]
[338408439,1726601229194,-302.24446742,0.00024,2]
[338408440,1726601229426,-500.0,0.00024022,2]
[338408441,1726601229450,-300.0,0.00024089,2]
[338408442,1726601229473,-300.0,0.00024089,2]
[338408443,1726601229497,-200.0,0.00024089,10]
[338408444,1726601229521,-5482.2616324,0.0002409,3]
[338408445,1726601229550,-752.19,0.000241,31]
[338408446,1726601229574,-752.19,0.000241,31]
[338408447,1726601229599,-752.19,0.000241,31]
[338408448,1726601229624,-752.19,0.000241,31]
[338408449,1726601229650,-752.19,0.000241,31]
[338408450,1726601229676,-752.19,0.000241,31]
[338408451,1726601229701,-752.19,0.000241,31]
[338408452,1726601229726,-752.19,0.000241,31]
[338408453,1726601229751,-752.19,0.000241,31]
[338408454,1726601229777,-752.19,0.000241,31]
[338408455,1726601229801,-752.19,0.000241,31]
[338408456,1726601229829,-752.19,0.000241,31]
[338408457,1726601229854,-752.19,0.000241,31]
[338408458,1726601229879,-752.19,0.000241,31]
[338408459,1726601229905,-752.19,0.000241,31]
[338408460,1726601229930,-752.19,0.000241,31]
[338408461,1726601229954,-752.19,0.000241,31]
[338408462,1726601229978,-752.19,0.000241,31]
[338408463,1726601230002,-752.19,0.000241,31]
[338408464,1726601230028,-752.19,0.000241,31]
[338408465,1726601230052,-752.19,0.000241,31]
[338408466,1726601230077,-752.19,0.000241,31]
[338408467,1726601230103,-752.19,0.000241,31]
[338408468,1726601230127,-752.19,0.000241,31]
[338408469,1726601230147,-201.0,0.00024164,2]
[338408470,1726601230168,-302.21432435,0.0002424,2]
[338408471,1726601230188,-302.24446742,0.0002424,2]
[338408472,1726601230210,-1000.0,0.00024273,2]
[338408473,1726601230229,-302.21432435,0.0002448,2]
[338408474,1726601230250,-302.24446742,0.0002448,2]
[338408475,1726601230270,-166.666666,0.00024482,2]
[338408476,1726601230291,-500.0,0.00024547,60]
[338408477,1726601230313,-1833.38295655,0.00024557,2]
[338408478,1726601230334,-1000.0,0.0002457,7]
[338408479,1726601230356,-184.92249722,0.00024656,2]
[338408480,1726601230377,-317.54075964,0.00024656,2]
[338408481,1726601230397,-500.0,0.00024657,2]
[338408482,1726601230420,-500.0,0.00024657,10]
[338408483,1726601230444,-500.0,0.00024657,10]
[338408484,1726601230466,-500.0,0.00024657,10]
[338408485,1726601230486,-1000.0,0.00024657,10]
[338408486,1726601230506,-1000.0,0.00024657,10]
[338408487,1726601230532,-1000.0,0.00024657,10]
[338408488,1726601230555,-1000.0,0.00024657,10]
[338408489,1726601230577,-1000.0,0.00024657,10]
[338408490,1726601230597,-1000.0,0.00024657,10]
[338408491,1726601230618,-1000.0,0.00024657,10]
[338408492,1726601230639,-1000.0,0.00024657,10]
[338408493,1726601230659,-1000.0,0.00024657,10]
[338408494,1726601230680,-1000.0,0.00024657,10]
[338408495,1726601230700,-1000.0,0.00024657,10]
[338408496,1726601230721,-1000.0,0.00024657,10]
[338408497,1726601230745,-1000.0,0.00024657,10]
[338408498,1726601230767,-1000.0,0.00024657,10]
[338408499,1726601230793,-1000.0,0.00024657,10]
[338408500,1726601230818,-1000.0,0.00024657,10]
[338408501,1726601230884,-1000.0,0.00024657,10]
[338408502,1726601230931,-1000.0,0.00024657,10]
[338408503,1726601230972,-1000.0,0.00024657,10]
[338408504,1726601231010,-1000.0,0.00024657,10]
[338408505,1726601231050,-1000.0,0.00024657,10]
[338408506,1726601231080,-754.9719165,0.00024657,10]
[338408507,1726601231117,-200.0,0.00024658,2]
[338408508,1726601231156,-200.0,0.00024658,15]
[338408509,1726601231184,-380.0,0.00024658,2]
[338408510,1726601231218,-1009.56659407,0.000247,2]
[338408511,1726601231258,-302.21432435,0.0002472,2]
[338408512,1726601231287,-302.24446742,0.0002472,2]
[338408513,1726601231337,-306.0,0.00024767,2]
[338408514,1726601231372,-500.0,0.00024773,2]
[338408515,1726601231405,-500.0,0.00024773,2]
[338408516,1726601231450,-5538.59,0.0002478,2]
[338408517,1726601231491,-101506.17,0.0002478,3]
[338408518,1726601231530,-219.45969981,0.00024789,2]
[338408519,1726601231565,-500.0,0.00024789,2]
[338408520,1726601231599,-500.0,0.00024789,2]
[338408521,1726601231633,-398.87732787,0.00024789,2]
[338408522,1726601231666,-216472.62675,0.0002479,3]
[338408523,1726601231699,-202029.70900634,0.0002479,3]
[338408524,1726601231804,-64740.48331166,0.0002479,3]
[338408525,1726601231840,-8323.64066134,0.000248,5]
[338408526,1726601238168,-4754.49374662,0.0002477,3]
[338408527,1726601243143,-10571.856066,0.0002477,3]
[338408528,1726601244635,-69262.12018738,0.0002477,3]
[338408529,1726601244658,-500.0,0.00024773,2]
[338408530,1726601244681,-2000.0,0.000248,6]
[338408531,1726601244704,-58465.53241462,0.000248,14]
[338408532,1726601252088,-228380.30758538,0.000248,14]
[338408533,1726601252109,-21896.54,0.000248,14]
[338408534,1726601252130,-1507.13,0.000248,7]
[338408535,1726601252150,-55771.47,0.000248,14]
[338408536,1726601252176,-3620.78,0.000248,14]
[338408537,1726601252197,-2000.0,0.000249,5]
[338408538,1726601252222,-752.19,0.000249,31]
[338408539,1726601252246,-752.19,0.000249,31]
[338408540,1726601252269,-752.19,0.000249,31]
[338408541,1726601252293,-752.19,0.000249,31]
[338408542,1726601252319,-752.19,0.000249,31]
[338408543,1726601252343,-752.19,0.000249,31]
[338408544,1726601252367,-752.19,0.000249,31]
[338408545,1726601252395,-752.19,0.000249,31]
[338408546,1726601252418,-752.19,0.000249,31]
[338408547,1726601252440,-752.19,0.000249,31]
[338408548,1726601252463,-752.19,0.000249,31]
[338408549,1726601252486,-752.19,0.000249,31]
[338408550,1726601252511,-752.19,0.000249,31]
[338408551,1726601252534,-752.19,0.000249,31]
[338408552,1726601252558,-752.19,0.000249,31]
[338408553,1726601252580,-752.19,0.000249,31]
[338408554,1726601252602,-752.19,0.000249,31]
[338408555,1726601252627,-752.19,0.000249,31]
[338408556,1726601252650,-752.19,0.000249,31]
[338408557,1726601252673,-752.19,0.000249,31]
[338408558,1726601252697,-752.19,0.000249,31]
[338408559,1726601252721,-752.19,0.000249,31]
[338408560,1726601252744,-752.19,0.000249,31]
[338408561,1726601252768,-752.19,0.000249,31]
[338408562,1726601252788,-500.0,0.00024931,5]
[338408563,1726601252810,-302.21432435,0.0002496,2]
[338408564,1726601252832,-302.24446742,0.0002496,2]
[338408565,1726601252857,-500.0,0.00024973,2]
[338408566,1726601252880,-500.0,0.00024973,2]
[338408567,1726601252901,-535.37981013,0.00024973,2]
[338408568,1726601252925,-1441.22404876,0.00024999,3]
[338408569,1726601252949,-11409.1946401,0.00025,5]
[338408570,1726601252968,-1000.5,0.00025,31]
[338408571,1726601252988,-1000.5,0.00025,31]
[338408572,1726601253009,-1000.5,0.00025,31]
[338408573,1726601253029,-1018.9,0.00025,31]
[338408574,1726601253052,-1119.7,0.00025,31]
[338408575,1726601253073,-164.4007078,0.00025,2]
[338408576,1726601253093,-201.999999,0.00025,2]
[338408577,1726601253114,-1033.03492369,0.00025,2]
[338408578,1726601253136,-15112.76062983,0.00025,10]
[338408579,1726601253157,-190.35,0.00025,2]
[338408580,1726601253178,-8362.05822018,0.00025,2]
[338408581,1726601253201,-12087.16867272,0.00025,10]
[338408582,1726601253224,-61603.63411665,0.00025,5]
[338408583,1726601253246,-260289.50118499,0.00025,2]
[338408603,1726601432165,-309.37,0.0002,2]
[338408604,1726601432175,-337.0,0.00023,2]
[338408605,1726601432185,-166.666666,0.00023097,2]
[338408606,1726601432195,-337.0,0.00023374,2]
[338408607,1726601432204,-166.666666,0.00023727,2]
[338408608,1726601432214,-302.24446742,0.00024,2]
[338408609,1726601432224,-254.49139398,0.00024209,2]
[338408610,1726601432234,-302.24446742,0.0002424,2]
[338408611,1726601432244,-337.0,0.00024255,2]
[338408612,1726601432253,-115.07167465,0.00024356,2]
[338408613,1726601432286,-51.59499135,0.00024356,2]
[338408614,1726601432296,-302.24446742,0.0002448,2]
[338408615,1726601432305,-302.24446742,0.0002472,2]
[338408616,1726601432316,-5307.82,0.0002478,2]
[338408617,1726601432326,-309.98613558,0.00024873,2]
[338408618,1726601432336,-300.0,0.00024899,2]
[338408619,1726601432345,-300.0,0.00024899,2]
[338408620,1726601432355,-275.68380228,0.00024899,10]
[338408621,1726601432364,-968.66213295,0.000249,2]
[338408653,1726601438991,-31.33786705,0.000249,2]
[338408654,1726601439000,-908.60993469,0.000249,2]
[338408655,1726601439009,-302.24446742,0.0002496,2]
[338408656,1726601439018,-166.666666,0.00024986,2]
[338408657,1726601439027,-153.62178987,0.00024989,2]
[338408658,1726601439036,-500.0,0.00024989,2]
[338408659,1726601439046,-479.21412951,0.00024989,2]
[338408660,1726601439055,-63026.7321387,0.0002499,3]
[338408661,1726601439094,-150592.3838733,0.0002499,3]
[338408662,1726601439103,-5704.59732005,0.00025,5]
[338408663,1726601439112,-239190.52270047,0.00025,2]
[338408664,1726601439123,-33738.30529985,0.00025,2]
[338408665,1726601439559,-78989.339259,0.00025,2]
[338408666,1726601439571,-2827.294796,0.00025,2]
[338408667,1726601439593,-1174.650674,0.00025,2]
[338408677,1726601440247,-3885.8903918,0.00025,2]
[338408678,1726601440269,-528.27708296,0.00025,2]
[338408681,1726601443188,-26.77149178,0.0002498,3]
[338408686,1726601444020,-14724.018437,0.0002498,3]
[338408691,1726601446177,-14469.739178,0.0002498,3]
[338408834,1726602633644,-278.44,0.0002,2]
[338408835,1726602633653,-165.849,0.00021,2]
[338408838,1726602638245,-989.99582249,0.00021,2]
[338408839,1726602638359,-1844.15517751,0.00021,2]
[338408840,1726602638369,-3000.0,0.0002101,2]
[338408841,1726602638379,-154.11553568,0.00021016,2]
[338408842,1726602638389,-300.0,0.00021019,2]
[338408843,1726602638399,-300.0,0.00021019,2]
[338408844,1726602638410,-3000.0,0.0002102,2]
[338408845,1726602638420,-3000.0,0.0002103,2]
[338408847,1726602638432,-4625.039042,0.0002104,2]
[338408848,1726602638442,-150.0,0.00021329,2]
[338408849,1726602638451,-524.0,0.00021329,2]
[338408850,1726602638462,-1076.0,0.00021329,2]
[338408851,1726602638471,-166.666666,0.00021918,2]
[338408852,1726602638480,-163.449493,0.00022016,2]
[338408853,1726602638489,-500.0,0.0002225,2]
[338408854,1726602638500,-166.666666,0.00022431,2]
[338408855,1726602638509,-420.0,0.00022864,2]
[338408856,1726602638519,-166.666666,0.00022944,2]
[338408857,1726602638530,-771.0,0.00023,2]
[338408858,1726602638540,-420.0,0.00023121,2]
[338408859,1726602638549,-771.0,0.00023288,2]
[338408860,1726602638559,-500.0,0.0002329,2]
[338408861,1726602638568,-271.03,0.000233,31]
[338408862,1726602638579,-271.03,0.000233,31]
[338408863,1726602638589,-271.03,0.000233,31]
[338408864,1726602638598,-271.03,0.000233,31]
[338408865,1726602638608,-271.03,0.000233,31]
[338408866,1726602638618,-271.03,0.000233,31]
[338408867,1726602638628,-271.03,0.000233,31]
[338408868,1726602638637,-271.03,0.000233,31]
[338408869,1726602638647,-271.03,0.000233,31]
[338408870,1726602638657,-271.03,0.000233,31]
[338408871,1726602638666,-271.03,0.000233,31]
[338408872,1726602638675,-271.03,0.000233,31]
[338408873,1726602638685,-271.03,0.000233,31]
[338408874,1726602638694,-271.03,0.000233,31]
[338408875,1726602638703,-271.03,0.000233,31]
[338408876,1726602638713,-271.03,0.000233,31]
[338408877,1726602638722,-166.666666,0.00023456,2]
[338408878,1726602638731,-179.03010963,0.00023539,4]
[338408879,1726602638740,-771.0,0.00023562,2]
[338408880,1726602638750,-1000.0,0.0002362,2]
[338408881,1726602638762,-771.0,0.00023836,2]
[338408882,1726602638772,-166.666666,0.00023969,2]
[338408884,1726602638782,-302.27461649,0.00024,2]
[338408886,1726602638792,-1604.21008692,0.00024,2]
[338408888,1726602638804,-302.24446742,0.00024,2]
[338408889,1726602638814,-271.03,0.000241,31]
[338408890,1726602638823,-271.03,0.000241,31]
[338408891,1726602638834,-271.03,0.000241,31]
[338408892,1726602638843,-271.03,0.000241,31]
[338408893,1726602638853,-271.03,0.000241,31]
[338408894,1726602638863,-271.03,0.000241,31]
[338408896,1726602638872,-271.03,0.000241,31]
[338408898,1726602638881,-271.03,0.000241,31]
[338408900,1726602638890,-271.03,0.000241,31]
[338408901,1726602638900,-271.03,0.000241,31]
[338408903,1726602638910,-271.03,0.000241,31]
[338408904,1726602638919,-271.03,0.000241,31]
[338408906,1726602638928,-271.03,0.000241,31]
[338408908,1726602638938,-271.03,0.000241,31]
[338408910,1726602638948,-271.03,0.000241,31]
[338408912,1726602638957,-271.03,0.000241,31]
[338408913,1726602638967,-271.03,0.000241,31]
[338408915,1726602638977,-271.03,0.000241,31]
[338408917,1726602638986,-271.03,0.000241,31]
[338408919,1726602638997,-271.03,0.000241,31]
[338408920,1726602639006,-271.03,0.000241,31]
[338408921,1726602639016,-271.03,0.000241,31]
[338408923,1726602639025,-271.03,0.000241,31]
[338408924,1726602639034,-271.03,0.000241,31]
[338408926,1726602639044,-771.0,0.0002411,2]
[338408928,1726602639053,-771.0,0.00024164,2]
[338408930,1726602639061,-302.27461649,0.0002424,2]
[338408932,1726602639072,-302.24446742,0.0002424,2]
[338408934,1726602639081,-150.0,0.00024329,2]
[338408935,1726602639090,-479.792,0.00024329,2]
[338408936,1726602639099,-1076.0,0.00024329,2]
[338408937,1726602639109,-771.0,0.00024384,2]
[338408939,1726602639118,-302.27461649,0.0002448,2]
[338408940,1726602639127,-302.24446742,0.0002448,2]
[338408941,1726602639137,-166.666666,0.00024482,2]
[338408942,1726602639147,-200.0,0.00024658,15]
[338408943,1726602639156,-380.0,0.00024658,2]
[338408944,1726602639165,-1000.0,0.0002466,2]
[338408945,1726602639174,-302.27461649,0.0002472,2]
[338408946,1726602639183,-302.24446742,0.0002472,2]
[338408947,1726602639193,-587.0,0.0002487,2]
[338408948,1726602639202,-1000.0,0.0002488,2]
[338408949,1726602639211,-271.03,0.000249,31]
[338408950,1726602639221,-271.03,0.000249,31]
[338408951,1726602639230,-271.03,0.000249,31]
[338408952,1726602639239,-271.03,0.000249,31]
[338408953,1726602639248,-271.03,0.000249,31]
[338408954,1726602639257,-271.03,0.000249,31]
[338408955,1726602639266,-271.03,0.000249,31]
[338408956,1726602639276,-271.03,0.000249,31]
[338408957,1726602639285,-271.03,0.000249,31]
[338408958,1726602639294,-271.03,0.000249,31]
[338408959,1726602639303,-271.03,0.000249,31]
[338408960,1726602639312,-271.03,0.000249,31]
[338408961,1726602639323,-271.03,0.000249,31]
[338408962,1726602639340,-271.03,0.000249,31]
[338408963,1726602639349,-271.03,0.000249,31]
[338408964,1726602639358,-271.03,0.000249,31]
[338408965,1726602639368,-271.03,0.000249,31]
[338408966,1726602639377,-271.03,0.000249,31]
[338408967,1726602639387,-271.03,0.000249,31]
[338408968,1726602639396,-271.03,0.000249,31]
[338408969,1726602639406,-271.03,0.000249,31]
[338408970,1726602639415,-271.03,0.000249,31]
[338408971,1726602639424,-271.03,0.000249,31]
[338408972,1726602639435,-271.03,0.000249,31]
[338408973,1726602639444,-817.74894114,0.000249,2]
[338408974,1726602639454,-302.27461649,0.0002496,2]
[338408975,1726602639463,-302.24446742,0.0002496,2]
[338408976,1726602639472,-65620.3,0.0002497,3]
[338408977,1726602639482,-500.0,0.00024973,2]
[338408978,1726602639491,-500.0,0.00024973,2]
[338408979,1726602639500,-500.0,0.00024973,2]
[338408980,1726602639511,-500.0,0.00024973,2]
[338408981,1726602639520,-5086.66,0.0002498,2]
[338408982,1726602639529,-108964.545117,0.0002498,3]
[338408983,1726602639538,-5787.96042249,0.0002498,3]
[338408984,1726602639547,-500.0,0.00024989,2]
[338408985,1726602639557,-185.44989066,0.00024989,2]
[338408986,1726602639566,-96857.373437,0.0002499,3]
[338408987,1726602639575,-7074.17384971,0.0002499,3]
[338408988,1726602639584,-253.81561284,0.00024999,2]
[338408989,1726602639593,-5704.59732005,0.00025,5]
[338408990,1726602639602,-591.39931461,0.00025,5]
[338408991,1726602639612,-41645.17312803,0.00025,2]
[338409001,1726602640512,-18827.2225734,0.00025,2]
[338409058,1726602646356,-24726.80931449,0.00025,2]
[338409095,1726603750137,-250.59,0.0002,2]
[338409096,1726603750160,-423.358978,0.00021,2]
[338409097,1726603750185,-154.11553568,0.00021016,2]
[338409107,1726603832359,-1076.0,0.00021329,2]
[338409108,1726603832370,-166.666666,0.00022581,2]
[338409109,1726603832380,-138.79947296,0.00022972,2]
[338409110,1726603832391,-486.54876236,0.00022972,2]
[338409111,1726603832414,-618.24567212,0.00022972,2]
[338409112,1726603832425,-473.83415027,0.00022972,2]
[338409113,1726603832437,-1105.39935769,0.00022972,2]
[338409115,1726603832447,-452.0,0.00023,2]
[338409117,1726603832457,-166.666666,0.00023197,2]
[338409119,1726603832468,-452.0,0.00023288,2]
[338409123,1726603832478,-300.0,0.00023299,2]
[338409125,1726603832492,-300.0,0.00023299,2]
[338409127,1726603832502,-161.14,0.000233,31]
[338409129,1726603832512,-161.14,0.000233,31]
[338409131,1726603832522,-161.14,0.000233,31]
[338409133,1726603832532,-161.14,0.000233,31]
[338409135,1726603832541,-161.14,0.000233,31]
[338409136,1726603832550,-161.14,0.000233,31]
[338409137,1726603832560,-161.14,0.000233,31]
[338409138,1726603832569,-161.14,0.000233,31]
[338409139,1726603832579,-161.14,0.000233,31]
[338409140,1726603832589,-161.14,0.000233,31]
[338409141,1726603832599,-50.06379641,0.000233,31]
[338409159,1726603838481,-111.07620359,0.000233,31]
[338409160,1726603838491,-161.14,0.000233,31]
[338409161,1726603838501,-161.14,0.000233,31]
[338409162,1726603838511,-161.14,0.000233,31]
[338409163,1726603838520,-161.14,0.000233,31]
[338409164,1726603838530,-161.14,0.000233,31]
[338409165,1726603838539,-166.666669,0.00023338,2]
[338409166,1726603838551,-2727.0763769,0.00023373,2]
[338409167,1726603838560,-500.0,0.000237,2]
[338409168,1726603838570,-166.666666,0.00023813,2]
[338409169,1726603838579,-166.666669,0.00023946,2]
[338409170,1726603838588,-302.30477158,0.00024,2]
[338409171,1726603838598,-302.30477158,0.00024,2]
[338409172,1726603838607,-161.14,0.000241,31]
[338409173,1726603838617,-161.14,0.000241,31]
[338409174,1726603838626,-161.14,0.000241,31]
[338409175,1726603838635,-161.14,0.000241,31]
[338409176,1726603838653,-161.14,0.000241,31]
[338409177,1726603838663,-161.14,0.000241,31]
[338409178,1726603838672,-161.14,0.000241,31]
[338409179,1726603838681,-161.14,0.000241,31]
[338409180,1726603838691,-161.14,0.000241,31]
[338409181,1726603838700,-161.14,0.000241,31]
[338409182,1726603838709,-161.14,0.000241,31]
[338409183,1726603838719,-161.14,0.000241,31]
[338409184,1726603838729,-161.14,0.000241,31]